Cogmind - Beta 16.1 @@@ ROGUE MODE // 2026.04.16 @ 11:48:43 Player: impermanentSelf Result: Destroyed by H-61 Shepherd with Heavy Assault Cannon Performance ------------- Evolutions (2) 1000 Regions Visited (3) 600 Robots Destroyed (37) 185 Value Destroyed (1149) 1149 Prototype IDs (1) 20 Alien Tech Used (0) 0 Bonus (0) 0 TOTAL SCORE: 2954 Bonus ------- None Cogmind --------- Core Integrity 0/550 Matter 299/300 Energy 100/100 System Corruption 0% Temperature Cool (0) Movement Core (100) Ox1 Location -8/Materials Parts ------- > --- POWER (2) -------- (None) > --- PROPULSION (3) --- (None) > --- UTILITY (4) ------ Machine Analyzer Improved Signal Interpreter Melee Analysis Suite > --- WEAPON (2) ------- Heavy Assault Rifle Scythe > --- INVENTORY (5) ---- Light Deuterium Engine Cryofiber Web Sensor Array ECM Suite Peak State ------------ > --- POWER ------------ Light Deuterium Engine Light Nuclear Core > --- PROPULSION ------- Airjet Airjet > --- UTILITY ---------- Machine Analyzer Signal Interpreter Melee Analysis Suite Shield Generator > --- WEAPON ----------- Autogun Scythe > --- INVENTORY -------- Cryofiber Web Sensor Array ECM Suite Propulsion Shielding [Rating: 26] Favorites ----------- Power Light Nuclear Core Engine Light Ion Engine Power Core Light Nuclear Core Propulsion Airjet Treads Light Treads Leg Aluminum Leg Hover Unit Airjet Flight Unit Flight Unit Utility Signal Interpreter Device Shield Generator Storage Medium Storage Unit Processor Signal Interpreter Protection Propulsion Shielding Weapon Scythe Energy Gun Shock Rifle Energy Cannon Beam Cannon Ballistic Gun Autogun Ballistic Cannon Improved Light Cannon Impact Weapon Heavy Mace Slashing Weapon Scythe Build | -11 -10 -9 -8 ------- Run | Yrd Mat Mat Mat Slots Evolved 4 | . . 2 2 Power 1 | . . . 1 Propulsion 1 | . . 1 . Utility 2 | . . 1 1 Weapon . | . . . . Parts Attached 46 | 6 13 10 17 Power 9 | 1 2 1 5 Engine 8 | 1 2 1 4 Core 1 | . . . 1 Reactor . | . . . . Propulsion 13 | 2 4 4 3 Treads 2 | 2 . . . Leg 2 | . 2 . . Wheel . | . . . . Hover 4 | . . 4 . Flight 5 | . 2 . 3 Utility 10 | 1 3 2 4 Device 1 | . . . 1 Storage 2 | 1 1 . . Processor 6 | . 2 2 2 Hackware . | . . . . Protection 1 | . . . 1 Artifact . | . . . . Weapon 14 | 2 4 3 5 Energy Gun 1 | . . . 1 Energy Cannon 2 | . 2 . . Ballistic Gun 6 | 2 . 1 3 Ballistic Cannon 2 | . 2 . . Launcher . | . . . . Special Weapon . | . . . . Impact Weapon 2 | . . 2 . Slashing Weapon 1 | . . . 1 Piercing Weapon . | . . . . Special Melee Weapon . | . . . . Unidentified Prototypes 1 | . . 1 . Parts Lost 11 | . . 4 7 Power 3 | . . 1 2 Propulsion 5 | . . 2 3 Utility 3 | . . 1 2 Weapon . | . . . . Highest Loss Streak 5 | . . 2 5 To Critical Strikes . | . . . . Average Backups 4 | 3 6 4 4 Power . | 1 1 . . Propulsion . | 1 1 . . Utility 2 | . 2 2 3 Weapon . | 1 1 . . Tool/Special . | . . . . Unused Backups 8 | . 4 1 3 Power . | . . . . Propulsion 2 | . 2 . . Utility 5 | . 1 1 3 Weapon 1 | . 1 . . Tool/Special . | . . . . Average Slot Usage (%) 86 | . 91 78 86 Engine 10 | . 14 6 9 Core 3 | . . . 6 Treads 4 | . 15 . . Leg 1 | . 3 . . Hover 8 | . . 19 9 Flight 8 | . 8 5 10 Device 2 | . . . 4 Storage 2 | . 9 . . Processor 25 | . 16 31 27 Protection 2 | . . . 3 Energy Cannon 3 | . 12 . . Ballistic Gun 3 | . 1 . 4 Ballistic Cannon 2 | . 8 3 . Impact Weapon 2 | . . 11 . Slashing Weapon 4 | . . . 8 Peak Build Rating 26 | 6 10 22 26 Average Rating 16 | 3 7 16 21 On Entrance 8 | . 6 9 18 Avg Prop Armor Cover (%) . | . . . . Naked Turns . | . . . . Heaviest Build 23 | 11 23 13 19 Greatest Support 40 | 40 40 24 18 Greatest Overweight (x) 4 | . 2 2 4 Average Overweight (x) . | . . . . Largest Inventory Capacity 10 | 8 10 5 5 Average Capacity 5 | 7 7 5 5 Most Carried 10 | 7 10 5 5 Average Carried 4 | 4 6 4 4 Final Capacity 8 | 8 5 5 5 Final Carried 5 | 4 5 5 4 Class Distribution -------------------- 66% | Mutant 23% | Scavenger-Mutant 10% | Sprinter Dominant Class ---------------- Mutant | -10/Materials Mutant | -9/Materials Mutant | -8/Materials Resources | -11 -10 -9 -8 ----------- Run | Yrd Mat Mat Mat Matter Collected 795 | 210 90 335 160 Remotely . | . . . . Salvage Created 1469 | . 72 400 997 Parts 73 | . 6 17 50 Haulers Intercepted . | . . . . Recyclers Shooed 1 | . . 1 . Parts Field Recycled . | . . . . Retrieved Matter . | . . . . Parts Self-Destructed . | . . . . Prevented . | . . . . Parts Restored . | . . . . Kills | -11 -10 -9 -8 ------- Run | Yrd Mat Mat Mat Combat Hostiles Destroyed 32 | . 2 7 23 Melee 27 | . . 5 22 Cannons 2 | . 2 . . Classes Destroyed 8 | . 3 5 . Worker 2 | . . 1 1 Recycler 1 | . . 1 . Mechanic 1 | . 1 . . Watcher 1 | . 1 . . Swarmer 9 | . 2 . 7 Grunt 16 | . . 4 12 Brawler 1 | . . 1 . Sentry 6 | . . 2 4 Best Kill Streak 8 | . 2 3 8 Combat Bots Only 7 | . 2 5 7 Max Kills in Single Turn 1 | . 1 1 1 Gunslinging . | . . . . Exploded . | . . . . Melee 1 | . . 1 1 Uniques/NPCs Destroyed . | . . . . Combat | -11 -10 -9 -8 -------- Run | Yrd Mat Mat Mat Hostile Shots Fired 162 | . 28 23 111 Missed 50 | . 7 10 33 Hits 112 | . 21 13 78 Melee 5 | . . 5 . Projectile 107 | . 21 8 78 Critical Strikes 6 | . 1 2 3 Damage Taken 1704 | . 171 300 1233 Core 681 | . 53 49 579 Absorbed by Shields 129 | . . . 129 Redirected to Shielding 44 | . . . 44 Core Remaining (%) 88 | 100 78 87 . Volleys Fired 27 | . 19 5 3 Largest 2 | . 2 1 1 Hottest 120 | . 120 33 23 Shots Fired 34 | . 26 5 3 Gun 3 | . . . 3 Cannon 31 | . 26 5 . Launcher . | . . . . Special . | . . . . Kinetic 20 | . 12 5 3 Thermal 14 | . 14 . . Explosive . | . . . . Electromagnetic . | . . . . Robot Hit Streak 5 | . 5 2 2 Robot Miss Streak 5 | . 5 1 1 Penetration Max . | . . . . Secondary Targets . | . . . . Shots Hit Robots 92 | . 11 21 60 Core Hits 39 | . 4 12 23 Critical Kills 1 | . . 1 . Critical Parts Destroyed 4 | . . 4 . Critical Strikes 12 | . . 5 7 Smash 5 | . . 5 . Sever 7 | . . . 7 Melee Attacks 94 | . . 28 66 Impact 32 | . . 28 4 Slashing 62 | . . . 62 Piercing . | . . . . Sneak Attacks 2 | . . . 2 Combat Hostiles 1 | . . . 1 Follow-up Attacks 5 | . . 5 . Damage Inflicted 2891 | . 202 696 1993 Guns 29 | . . . 29 Cannons 271 | . 202 69 . Explosions . | . . . . Melee 2558 | . . 594 1964 Ramming 33 | . . 33 . Kinetic 160 | . 62 69 29 Thermal 140 | . 140 . . Explosive . | . . . . Electromagnetic . | . . . . Impact 716 | . . 594 122 Slashing 1842 | . . . 1842 Piercing . | . . . . Highest Corruption 11 | . . 11 . Average Corruption 6 | . . 6 . Corruption Purged . | . . . . Corruption Blocked . | . . . . Effects 4 | . . 4 . Message Errors 2 | . . 2 . Heat Flow Errors 1 | . . 1 . Data Loss (minor) 1 | . . 1 . Overload Shots . | . . . . Overflow Damage 233 | . . 128 105 Projectiles 10 | . . . 10 Explosions . | . . . . Melee 223 | . . 128 95 Knockbacks 4 | . 2 1 1 Impact 1 | . . 1 . Kinetic 2 | . 2 . . Secondary 1 | . . . 1 Self-Inflicted Damage 12 | . . 12 . Shots . | . . . . Rammed 14 | . . 14 . Targets Rammed 14 | . . 14 . Kicked . | . . . . Crushed . | . . . . Highest Temperature 360 | . 360 96 13 Average Temperature 117 | . 137 51 6 Received Heat Transfer 398 | . 12 45 341 Effects 2 | . 2 . . Energy Bleed 2 | . 2 . . Siege Activations . | . . . . Martial Activations . | . . . . Shielding Activations . | . . . . Robots Disrupted . | . . . . Combat Hostiles . | . . . . Robots Corrupted 3 | . . 2 1 Combat Hostiles 3 | . . 2 1 Parts Fried 5 | . . 3 2 Impact Corruptions 6 | . . 4 2 Robots Melted . | . . . . Combat Hostiles . | . . . . Parts Melted . | . . . . Heat Transferred 296 | . 296 . . Parts Sabotaged . | . . . . Parts Stolen . | . . . . Parts Stripped . | . . . . Power Chain Reactions . | . . . . Alert | -11 -10 -9 -8 ------- Run | Yrd Mat Mat Mat Maximum Alert Level 1 | . . . 1 Low Security (%) 97 | 100 100 100 95 Level 1 2 | . . . 4 Level 2 . | . . . . Level 3 . | . . . . Level 4 . | . . . . Level 5 . | . . . . High Security . | . . . . Max Security . | . . . . Peak Influence 243 | . 45 95 243 Initial 35 | . . . 35 Average 55 | . 4 30 90 Influence Increases 960 | . 69 205 686 Destroy 0b10 Robot/C 640 | . 40 140 460 Destroy 0b10 Robot/NC 25 | . 10 10 5 Destroy Leader 142 | . 2 40 100 Successful Hack 16 | . . . 16 Disable Machine 15 | . . . 15 Destroy Structure 2 | . 2 . . Partial Spotted 15 | . . . 15 Lose Combat Pursuer 105 | . 15 15 75 Influence Decreases 741 | . 69 120 552 Entered New Map 50 | . . . 50 Time Decay 559 | . 69 80 410 Lost Part 110 | . . 40 70 Purge Threat 22 | . . . 22 Squads Dispatched 5 | . 1 2 2 Investigation 2 | . 1 1 . Extermination . | . . . . Reinforcement 3 | . . 1 2 Assault . | . . . . Garrison . | . . . . Intercept . | . . . . Searches Triggered . | . . . . Construction Impeded . | . . . . Haulers Reinforced . | . . . . Active Scanning Responses . | . . . . Cargo Convoy Interrupts . | . . . . Stealth | -11 -10 -9 -8 --------- Run | Yrd Mat Mat Mat Distress Signals 4 | . . 1 3 Communications Jammed . | . . . . Distress Signals . | . . . . Times Spotted 69 | . 10 12 47 Peak Tracking Total 7 | . 3 4 7 Tactical Retreats 7 | . 1 1 5 Traps | -11 -10 -9 -8 ------- Run | Yrd Mat Mat Mat Traps Triggered 3 | . 2 1 . Indirectly . | . . . . Trap Hack Attempts . | . . . . Triggered . | . . . . Disarmed . | . . . . Reprogrammed . | . . . . Reused . | . . . . Traps Extracted . | . . . . Installed . | . . . . Triggered . | . . . . Machines | -11 -10 -9 -8 ---------- Run | Yrd Mat Mat Mat Machines Disabled 1 | . . . 1 Max in Single Turn 1 | . . . 1 Machines Repaired . | . . . . Machines Dismantled . | . . . . Machines Sabotaged . | . . . . Overloaded Fab Kills . | . . . . Hacking | -11 -10 -9 -8 --------- Run | Yrd Mat Mat Mat Machines Accessed 7 | . 1 1 5 Terminals 4 | . . . 4 Fabricators . | . . . . Repair Stations . | . . . . Recycling Units 1 | . 1 . . Scanalyzers 2 | . . 1 1 Garrison Access . | . . . . Total Hacks 16 | . 3 3 10 Successful 11 | . 3 3 5 Failed 5 | . . . 5 Catastrophic . | . . . . Database Lockouts . | . . . . Manual . | . . . . Terminals 8 | . . . 8 Fabricators . | . . . . Repair Stations . | . . . . Recycling Units 3 | . 3 . . Scanalyzers 5 | . . 3 2 Garrison Access . | . . . . Terminal Hacks 4 | . . . 4 Terminal Index 1 | . . . 1 Alert Level 1 | . . . 1 Unreport Threat 1 | . . . 1 Locate Traps 1 | . . . 1 Fabricator Hacks . | . . . . Repair Station Hacks . | . . . . Recycling Unit Hacks 3 | . 3 . . Process 1 | . 1 . . Report Inventory 1 | . 1 . . Retrieve Matter 1 | . 1 . . Scanalyzer 4 | . . 3 1 Insert Component 1 | . . 1 . Analyze 1 | . . 1 . Retrieve Study 2 | . . 1 1 Garrison Access Hacks . | . . . . Unauthorized Hacks . | . . . . Terminals . | . . . . Fabricators . | . . . . Repair Stations . | . . . . Recycling Units . | . . . . Scanalyzers . | . . . . Garrison Access . | . . . . Data Cores Recovered . | . . . . Used . | . . . . Hacking Detections 6 | . 1 1 4 Full Trace Events 2 | . 1 1 . Feedback Events . | . . . . Feedback Blocked . | . . . . Robot Schematics Acquired . | . . . . Robots Built . | . . . . Authchips . | . . . . Time . | . . . . Total Robot Build Rating . | . . . . Part Schematics Acquired 1 | . . 1 . Parts Built . | . . . . Authchips . | . . . . Time . | . . . . Total Part Build Rating . | . . . . Part Studies Acquired 2 | . . 1 1 Parts Repaired . | . . . . Time . | . . . . Parts Recycled . | . . . . Recycled Matter 276 | . 276 . . Retrieved Matter . | . . . . Retrieved Components . | . . . . Parts Scanalyzed 1 | . . 1 . Part Schematics Acquired 1 | . . 1 . Parts Damaged . | . . . . Bothacking | -11 -10 -9 -8 ------------ Run | Yrd Mat Mat Mat Used RIF Installer . | . . . . Robots Hacked . | . . . . Non-combat . | . . . . Combat . | . . . . Robot Hacks Applied . | . . . . Relay Couplers Released . | . . . . Fabnet Peak Effective % . | . . . . Robots Rewired . | . . . . Allies Hacked . | . . . . Hacks Repelled . | . . . . Allies | -11 -10 -9 -8 -------- Run | Yrd Mat Mat Mat Total Allies . | . . . . Largest Group . | . . . . Highest-Rated Group . | . . . . Highest-Rated Ally . | . . . . Total Orders . | . . . . Ally Attacks . | . . . . Total Damage . | . . . . Kills . | . . . . Allies Corrupted . | . . . . Allies Melted . | . . . . Intel | -11 -10 -9 -8 ------- Run | Yrd Mat Mat Mat Active Infowar (turns) 1520 | . . 318 1202 Machine Analysis 1520 | . . 318 1202 Robot Analysis Total . | . . . . Derelict Logs Recovered . | . . . . Drone Launches . | . . . . Drone Recoveries . | . . . . Exploration | -11 -10 -9 -8 ------------- Run | Yrd Mat Mat Mat Turns Passed 2168 | 80 568 318 1202 Spaces Moved 1797 | 45 460 382 910 Core 31 | 5 2 4 20 Treads 200 | 40 160 . . Legs 54 | . 54 . . Wheels . | . . . . Hover 727 | . . 217 510 Flight 785 | . 244 161 380 Fastest Speed 32 | 50 32 32 34 Average Speed 68 | 147 88 46 63 Slowest Speed 280 | 160 240 150 280 Overloaded Moves . | . . . . Propulsion Burnouts . | . . . . Robots Hopped 2 | . 2 . . Potential Cave-ins . | . . . . Cave-ins Triggered . | . . . . Exploration Rate (%) 34 | 3 44 38 51 Regions Visited 3 Branch Regions . Pre-discovered Areas . | . . . . Known Exits Taken 2 | . 1 1 . Unknown Exits Taken 1 | 1 . . . Scrap Searched . | . . . . Spaces Dug . | . . . . Terrain Destroyed 2 | . 2 . . Melee . | . . . . Projectile 2 | . 2 . . AOE . | . . . . Terrain Rammed . | . . . . Walls Destroyed . | . . . . Machines Disabled . | . . . . Actions | -11 -10 -9 -8 --------- Run | Yrd Mat Mat Mat Total 2562 | 57 594 479 1432 Wait 491 | . 54 17 420 Move 1790 | 44 455 381 910 Hop 2 | . 2 . . Pick Up 32 | 7 16 9 . Fast Attach 36 | 3 12 6 15 Attach 15 | 3 . 9 3 Detach 15 | . 5 4 6 Swap 9 | . 8 1 . Drop 42 | . 23 10 9 Fire 27 | . 19 5 3 Melee 89 | . . 23 66 Ram 14 | . . 14 . Kick . | . . . . Crush . | . . . . Escape Stasis . | . . . . Rewire . | . . . . Trap . | . . . . Miscellaneous . | . . . . Route ------- -11/Scrapyard -10/Materials (discovered 2 exits: *Mat / *Min) -9/Materials (discovered 3 exits: *Mat / *Min x2) -8/Materials (discovered 1 exit: [*Fac]) History --------- Turn | Location | Event 31 | -11/Scrapyard | Discovered new exit (range 16) 81 | -11/Scrapyard | Entered Materials 319 | -10/Materials | Build established: Mutant 526 | -10/Materials | Discovered new exit (range 8) 528 | -10/Materials | Identified exit to Mines 593 | -10/Materials | Discovered new exit (range 14) 649 | -10/Materials | Identified exit to Materials 649 | -10/Materials | Entered another Materials area 649 | -9/Materials | Evolved 2 slots: Propulsion x1, Utility x1 652 | -9/Materials | Discovered new exit (range 10) 658 | -9/Materials | Identified exit to Mines 721 | -9/Materials | Discovered exit to Mines (range 7) 856 | -9/Materials | System corruption reached 10% 960 | -9/Materials | Discovered new exit (range 14) 966 | -9/Materials | Identified exit to Materials 967 | -9/Materials | Entered another Materials area 967 | -8/Materials | Evolved 2 slots: Power x1, Utility x1 1611 | -8/Materials | Destroyed 7 combat bots 1909 | -8/Materials | Build established: Scavenger-Mutant 2144 | -8/Materials | Core integrity fell below 50% 2162 | -8/Materials | Core integrity fell below 20% 2166 | -8/Materials | Discovered new exit (range 4) 2169 | -8/Materials | Destroyed by H-61 Shepherd with Heavy Assault Cannon Last Messages --------------- Knocked back. Acquired Hvy. Assault Rifle. Penetrated by Slug. Flight Unit destroyed. H-61 Shepherd calls for reinforcements. ALERT: Hostile activity reported, dispatching reinforcements to area. Material Processor disabled. G-47 Trooper destroyed. R-06 Scavenger collects Lgt. Armor Plating. Slug penetrates Wall. Propulsion Shielding destroyed. Critical hit (Blast). K-01 Serf collects debris. Lgt. Nuclear Core destroyed. Knocked back. R-06 Scavenger collects Lgt. Nuclear Core. K-01 Serf collects debris. Knocked back. EXIT=FOUND Map ----- +----------------------------------------------------+ | ???????????????????????????????#???? | | ??????????????????????????????# ??? | | ??????????????????????????????# #??? | | ??????????????????????????????# #??? | | ??????????????????????????????# #??? | | ??????????????????????????????# #??? | | ??????????????????????????????# #### | | ???????????????????????????#### | | ???????????????????????????? | | ?????????????????????????????# | | ###########??????????????????# | | # "######????????????# | | # # ###+########## | | # *# | | ? """ =^%% | | ? """" !" H | | ? """" %% " ############## | | ? """" "" ##???????####### | | # """ ## #????????# =# | | ?########### #????????# " =# % | | ???????????# % #????????# ""%=+% | | ???????????# #????????# """%#[ | | ???????????# #????????# """!#= | | ???????##### #????????# "" # | | ???????# u# """ ???# """ ###### | | ???????# < @ t/ """ ???# "" #???# | | ???????# % # """ ???# """ #???# | | ???????##### # """ ???# " #???# | | ???????????# #?""" ???# #???# | | ???????????# #?? ???# #???# | | ???????????+ #???#????#######???# | | ??????"""??# #??????????????????## | | ??????"""??# #??????????????"""??? | | ??????"""??? #??""??????????"""??? | | ???????????? #?""S??????????"""??? | | ???????????? #?""????????????????? | | ???????????? #???????????????????? | | ???????????? +???????????????????? | | ???????????? #???????????????????? | | ???????????? ???????????????????? | | ???????????????????????????????????? | | ???????????????????????????????????? | | ???????????????????????????????????? | | ???????????????????????????????????? | | ???????????????????????????????????? | | ???????????????????????????????????? | | ???????????????????????????????????? | | ???????????????????????????????????? | | ???????????????????????????????????? | | ???????????????????????????????????? | +----------------------------------------------------+ Best States ------------- Heat Dissipation 31 Energy Generation 23 Energy Capacity 305 Matter Stores 300 Matter Capacity 300 Sight Range 16 Terrain Scan Density 10 Propulsion Shielding 33 Evasion (%) 63 Targeting Accuracy 5 Melee Accuracy 5 Recoil Reduction 2 Salvage Targeting 1 Item Schematics ----------------- VTOL Module | -9/Materials | Scanalyzed Robot Schematics ------------------ None Fabricated ------------ Nothing Repaired ---------- Nothing Studied --------- VTOL Module | -9/Materials | Hacked Airjet | -8/Materials | Hacked Alien Tech Used ----------------- None Achievements -------------- Item+ Power Corrupts System Compromised Challenges ------------ None Game ------ Seed CommZeronetBooster Manual? 0 Play Time 00:43:36 Cumulative 3.6 hours Start 2026.04.16 @ 11:06:58 End 2026.04.16 @ 11:48:43 Sessions 1 Manual Loads 0 Difficulty Rogue Special Mode None Game No. 5 Rogue 5 Adventurer 0 Explorer 0 Win Type - Total 0 Types 0/0/0/0/0/0/0/0/0/0 Lore% 0 Gallery% 6 Achievement% 6 Wizard Run 0 Options --------- Layout 1 ASCII 0 Keyboard 1 Movement Numpad Keybinds 0 Fullscreen 1 Font 32/SmallcapsGlow Map View 50x40 Zoom Use 0% Tactical HUD 0 Map Filters NONE Filters NONE Steam 1 RUN: d54d0873-6c29-4bab-986d-61487d627b8b